Workbook

Sheet 資料Ⅲー５
T1: 〇品目別の木材輸入量の推移
B3: 2019 | N3: 2019 集計 | O3: 2020 | U3: 丸太 | V3: 合計 | Z3: (m3)
A4: 行ラベル | B4: 01 | C4: 02 | D4: 03 | E4: 04 | F4: 05 | G4: 06 | H4: 07 | I4: 08 | J4: 09 | K4: 10 | L4: 11 | M4: 12 | O4: 01 | P4: 02 | Q4: 03 | R4: 04 | S4: 05 | V4: H28 (2016) | W4: 29 (2017) | X4: H30 (2018) | Y4: R1 (19) | Z4: 2 (20)
A5: 米 国 | B5: 149963 | C5: 97581 | D5: 152043 | E5: 164715 | F5: 102186 | G5: 151867 | H5: 116368 | I5: 125466 | J5: 149615 | K5: 127160 | L5: 59429 | M5: 120460 | N5: 1516853 | O5: 155171 | P5: 145021 | Q5: 185456 | R5: 131329 | S5: 116460 | U5: 米国 | V5: 1829609 | W5: 1637950 | X5: 1680879 | Y5: 1516853 | Z5: 1579164
A6: カナダ | B6: 75845 | C6: 69105 | D6: 103189 | E6: 47023 | F6: 79269 | G6: 97768 | H6: 49985 | I6: 81419 | J6: 32269 | K6: 67511 | L6: 72186 | M6: 79881 | N6: 855450 | O6: 28169 | P6: 54120 | Q6: 24521 | R6: 9119 | U6: カナダ | V6: 1002144 | W6: 947746 | X6: 893518 | Y6: 855450 | Z6: 272420
A7: ニュージーランド | B7: 41660 | C7: 166 | D7: 43734 | E7: 21596 | F7: 55605 | G7: 1 | H7: 42357 | I7: 40215 | J7: 25348 | K7: 46357 | L7: 46 | M7: 37782 | N7: 354867 | O7: 21279 | P7: 32973 | Q7: 17778 | R7: 38495 | S7: 94 | U7: ニュージーランド | V7: 431661 | W7: 378330 | X7: 382293 | Y7: 354867 | Z7: 283955
A8: 合 計 | B8: 286259 | C8: 196952 | D8: 323545 | E8: 261758 | F8: 265881 | G8: 280721 | H8: 233696 | I8: 269698 | J8: 227201 | K8: 250975 | L8: 166307 | M8: 255514 | N8: 3018507 | O8: 225441 | P8: 239328 | Q8: 250738 | R8: 203633 | S8: 145594 | U8: その他 | V8: =V9-SUM(V5:V7) -> 388253 | W8: =W9-SUM(W5:W7) -> 301676 | X8: =X9-SUM(X5:X7) -> 321404 | Y8: 291337 | Z8: 165081
U9: 合計 | V9: 3651667 | W9: 3265702 | X9: 3278094 | Y9: 3018507 | Z9: 2300620
U35: 製材 | V35: 合計 | Z35: (m3)
V36: H28 (2016) | W36: 29 (2017) | X36: H30 (2018) | Y36: R1 (19) | Z36: 2 (20)
U37: EU | V37: 2722599 | W37: 2812038 | X37: 2538739 | Y37: 2531781 | Z37: 2338677
U38: カナダ | V38: 1938450 | W38: 1914501 | X38: 1791185 | Y38: 1483257 | Z38: 1180011
U39: ロシア | V39: 886927 | W39: 849540 | X39: 851725 | Y39: 915543 | Z39: 811773
U40: その他 | V40: =V41-SUM(V37:V39) -> 766690 | W40: =W41-SUM(W37:W39) -> 747263 | X40: =X41-SUM(X37:X39) -> 786225 | Y40: =Y41-SUM(Y37:Y39) -> 768965 | Z40: =Z41-SUM(Z37:Z39) -> 602438
U41: 合計 | V41: 6314666 | W41: 6323342 | X41: 5967874 | Y41: 5699546 | Z41: 4932899
U69: 合板 | V69: 合計 | Z69: (m3)
V70: H28 (2016) | W70: 29 (2017) | X70: H30 (2018) | Y70: R1 (19) | Z70: 2 (20)
U71: マレーシア | V71: 1040000 | W71: 1161416 | X71: 1034481 | Y71: 855494 | Z71: 704075
U72: インドネシア | V72: 822000 | W72: 783436 | X72: 883408 | Y72: 769600 | Z72: 701786
U73: ベトナム | V73: 121000 | W73: 139810 | X73: 190122 | Y73: 137224 | Z73: 133876
U74: その他 | V74: =V75-SUM(V71:V73) -> 173000 | W74: =W75-SUM(W71:W73) -> 157597 | X74: =X75-SUM(X71:X73) -> 167139 | Y74: 153346 | Z74: 120654
U75: 合計 | V75: 2156000 | W75: 2242259 | X75: 2275150 | Y75: 1915664 | Z75: 1660391
U104: 集成材 | Z104: (m3)
V105: H28 (2016) | W105: 29 (2017) | X105: H30 (2018) | Y105: R1 (19) | Z105: 2 (20)
U106: EU | V106: 718816 | W106: 798087 | X106: 748001 | Y106: 766707 | Z106: 835319
U107: ロシア | V107: 66624 | W107: 69213 | X107: 75569 | Y107: 89706 | Z107: 77975
U108: 中国 | V108: 47294 | W108: 57219 | X108: 52205 | Y108: 52440 | Z108: 56288
U109: その他 | V109: 52509 | W109: 58830 | X109: 60652 | Y109: 63663 | Z109: 52643
U110: 合計 | V110: 885243 | W110: 983349 | X110: 936427 | Y110: 972516 | Z110: 1022225
U140: チップ | V140: 合計 | Z140: (トン)
V141: H28 (2016) | W141: 29 (2017) | X141: H30 (2018) | Y141: R1 (19) | Z141: 2 (20)
U142: ベトナム | V142: 2750305 | W142: 2734668 | X142: 3322899 | Y142: 3655308 | Z142: 3306037 | AA142: =Z142/Y142-1 -> -0.09555172916
U143: オーストラリア | V143: 2234854 | W143: 2632873 | X143: 2617866 | Y143: 2430103 | Z143: 1475795 | AA143: =Z143/Y143-1 -> -0.3927026961
U144: チリ | V144: 2032671 | W144: 1979456 | X144: 1867210 | Y144: 1570149 | Z144: 1419142 | AA144: -0.09617367524
U145: 南アフリカ | X145: 1185280 | Y145: 1203887 | Z145: 738956
U146: その他 | V146: =V147-SUM(V142:V145) -> 4882432 | W146: 4822842 | X146: 3455316 | Y146: 3311154 | Z146: =Z147-SUM(Z142:Z145) -> 2551121 | AA146: -0.2295371946
U147: 合計 | V147: 11900262 | W147: 12169839 | X147: 12448571 | Y147: 12170601 | Z147: 9491051 | AA147: -0.2201657913
W148: =W147/V147-1 -> 0.02265303066 | X148: =X147/W147-1 -> 0.0229035076 | Y148: -0.02232947059 | Z148: -0.2201657913
U177: 木質ペレット | V177: 合計 | Z177: (トン)
V178: 29 (2017) | W178: H30 (2018) | X178: R1 (19) | Y178: 2 (20)
U179: ベトナム | V179: 131115 | W179: 373524 | X179: 886984 | Y179: 1168998 | Z179: =Y179/X179-1 -> 0.3179471107
U180: カナダ | V180: 360068 | W180: 632739 | X180: 589661 | Y180: 592886 | Z180: =Y180/X180-1 -> 0.005469244193
U181: マレーシア | V181: 7604 | W181: 10410 | X181: 52154 | Y181: 160001 | Z181: 2.067856732
U182: その他 | V182: =V183-SUM(V179:V181) -> 7566 | W182: =W183-SUM(W179:W181) -> 42869 | X182: =X183-SUM(X179:X181) -> 85201 | Y182: =Y183-SUM(Y179:Y181) -> 106403 | Z182: 0.2488468445
U183: 合計 | V183: 506353 | W183: 1059542 | X183: 1614000 | Y183: 2028288 | Z183: 0.2566840149
W184: =W183/V183-1 -> 1.092496736 | X184: 0.5232996899 | Y184: 0.2566840149
